Cogmind - Beta 16 @@@ ROGUE MODE // 2025.11.11 @ 22:59:30 Player: naththebg Result: Destroyed by Executioner with Helical Railgun Performance ------------- Evolutions (8) 4000 Regions Visited (20) 4000 Robots Destroyed (263) 1315 Value Destroyed (15700) 15700 Prototype IDs (58) 1160 Alien Tech Used (1) 200 Bonus (12419) 12419 TOTAL SCORE: 38794 Bonus ------- High Alert Combat Kills 10963 Follower Combat Kills 588 Registered with UFD 300 Met Optimus in HQ 500 Scanned by Researcher 500 Met Optimus at Protoforge 1000 Friendly Fire -1432 Cogmind --------- Core Integrity 0/1450 Matter 300/300 Energy 265/1300 System Corruption 21% Temperature Cool (0) Movement Walking (96) Location -2/Protoforge Parts ------- > --- POWER (2) -------- Improved Quantum Reactor Improved Quantum Reactor > --- PROPULSION (6) --- Enhanced Biometal Leg (fused) Enhanced Biometal Leg Enhanced Biometal Leg Enhanced Biometal Leg Enhanced Biometal Leg Experimental VSS Leg > --- UTILITY (11) ----- High-capacity Storage Unit Energy Well Energy Well Experimental Optical Array Experimental Core Analyzer Experimental Armor Integrity Analyzer Advanced Kinecellerator Experimental Reaction Control System Heavy Armor Plating Improved Remote Force Field > --- WEAPON (4) ------- Compact Linear Accelerator Compact Linear Accelerator Omega Cannon > --- INVENTORY (20) --- Light Quantum Reactor Improved Quantum Reactor Myomer Leg Biometal Leg Biometal Leg Enhanced Biometal Leg Enhanced Biometal Leg Experimental Core Analyzer Centrium Light Armor Plating Improved Remote Force Field Core Cannon Helical Railgun Compact Linear Accelerator Peak State ------------ > --- POWER ------------ Light Quantum Reactor Improved Quantum Reactor > --- PROPULSION ------- Enhanced Biometal Leg Experimental VSS Leg Experimental VSS Leg Experimental VSS Leg Experimental VSS Leg Experimental VSS Leg > --- UTILITY ---------- Experimental Heat Sink Experimental Optical Array Experimental Optical Array Experimental Core Analyzer Experimental Core Analyzer Experimental Core Analyzer Experimental Core Analyzer Experimental Armor Integrity Analyzer Experimental Kinecellerator Centrium Medium Armor Plating Centrium Medium Armor Plating > --- WEAPON ----------- Core Cannon Concept XC Strikerail Concept XC Strikerail > --- INVENTORY -------- Experimental Kinecellerator Omega Cannon [Rating: 236] Favorites ----------- Power Micro Fission Core Engine Ion Engine Power Core Micro Fission Core Reactor Improved Quantum Reactor Propulsion Enhanced Biometal Leg Leg Enhanced Biometal Leg Wheel Compact Wheel Hover Unit Gravmag System Flight Unit Field Propulsion Drive Utility Medium Storage Unit Device Advanced Heat Sink Storage Medium Storage Unit Processor Experimental Core Analyzer Hackware Advanced System Shield Protection Centrium Light Armor Plating Weapon Concept XC Strikerail Energy Gun Small Laser Energy Cannon Beam Cannon Ballistic Gun Concept XC Strikerail Ballistic Cannon Omega Cannon Launcher Missile Launcher Special Weapon Junk Cannon Impact Weapon Powered Hammer Slashing Weapon Greatsword Piercing Weapon Lance Build | -11 -10 -10 -10 -9 -8 -7 -7 -7 -7 -5 -5 -5 -4 -4 -4 -3 -3 -2 -2 -2 ------- Run | Yrd Mat Min Exi Min Mat Fac Sto Rec Scr Fac Was Fac Fac Was Fac Res Tes Res Qua Frg Slots Evolved 16 | . . . . . 4 2 . . . 4 . . 2 . . 2 . 2 . . Power 1 | . . . . . . . . . . 1 . . . . . . . . . . Propulsion 4 | . . . . . 2 1 . . . 1 . . . . . . . . . . Utility 9 | . . . . . 2 1 . . . 2 . . 2 . . 1 . 1 . . Weapon 2 | . . . . . . . . . . . . . . . . 1 . 1 . . Parts Attached 181 | 7 4 5 1 . 13 11 3 . 6 14 . 6 6 3 7 8 9 2 2 74 Power 23 | 1 . 2 . . 1 1 2 . . 3 . 2 . . 1 . . . . 10 Engine 5 | 1 . 2 . . . 1 1 . . . . . . . . . . . . . Core 8 | . . . . . 1 . 1 . . 3 . 2 . . 1 . . . . . Reactor 10 | . . . . . . . . . . . . . . . . . . . . 10 Propulsion 47 | 3 2 2 . . 4 5 . . 2 4 . 2 . . . 3 1 . 1 18 Treads . | . . . . . . . . . . . . . . . . . . . . . Leg 24 | 2 2 2 . . . . . . . . . . . . . . . . . 18 Wheel 1 | 1 . . . . . . . . . . . . . . . . . . . . Hover 5 | . . . . . 4 1 . . . . . . . . . . . . . . Flight 17 | . . . . . . 4 . . 2 4 . 2 . . . 3 1 . 1 . Utility 81 | 1 1 . 1 . 5 5 1 . 1 5 . 2 5 3 5 4 5 . . 37 Device 25 | . 1 . . . 1 1 . . . 2 . 1 2 3 2 1 2 . . 9 Storage 8 | 1 . . 1 . . . . . . . . . . . . . 2 . . 4 Processor 17 | . . . . . . 1 . . . 1 . 1 2 . . 2 . . . 10 Hackware 10 | . . . . . 2 . . . 1 2 . . 1 . 2 1 1 . . . Protection 21 | . . . . . 2 3 1 . . . . . . . 1 . . . . 14 Artifact . | . . . . . . . . . . . . . . . . . . . . . Weapon 30 | 2 1 1 . . 3 . . . 3 2 . . 1 . 1 1 3 2 1 9 Energy Gun 3 | 1 . 1 . . . . . . . . . . . . . . 1 . . . Energy Cannon 5 | . 1 . . . . . . . . . . . . . . . 1 2 1 . Ballistic Gun 7 | 1 . . . . 1 . . . . . . . . . . . . . . 5 Ballistic Cannon 4 | . . . . . . . . . 1 . . . . . . . 1 . . 2 Launcher 4 | . . . . . 1 . . . . 1 . . . . 1 . . . . 1 Special Weapon 3 | . . . . . . . . . 1 . . . . . . 1 . . . 1 Impact Weapon 1 | . . . . . . . . . 1 . . . . . . . . . . . Slashing Weapon 2 | . . . . . 1 . . . . . . . 1 . . . . . . . Piercing Weapon 1 | . . . . . . . . . . 1 . . . . . . . . . . Special Melee Weapon . | . . . . . . . . . . . . . . . . . . . . . Unidentified Prototypes 39 | . . . . . 2 2 2 . 1 1 . 1 1 1 1 1 6 2 1 17 Corrupted Parts 1 | . . . . . . . . . . . . . . . . . . . . 1 System Corruption 2 | . . . . . . . . . . . . . . . . . . . . 2 Parts Lost 48 | . . 2 . . 1 1 2 . . 2 . 1 1 . . 1 . . 3 34 Power 5 | . . 1 . . . . . . . . . . . . . . . . . 4 Propulsion 15 | . . . . . . 1 1 . . 2 . . . . . . . . 3 8 Utility 23 | . . 1 . . 1 . 1 . . . . 1 1 . . 1 . . . 17 Weapon 5 | . . . . . . . . . . . . . . . . . . . . 5 Highest Loss Streak 10 | . . 2 . . 1 1 1 . . 1 . 1 1 . . 1 . . 2 10 To Critical Strikes . | . . . . . . . . . . . . . . . . . . . . . Average Backups 8 | 4 7 7 8 8 8 8 9 10 9 8 9 9 8 10 9 9 8 7 7 8 Power . | . 1 . 1 1 1 . . 1 1 1 1 1 . . . . . . . . Propulsion 2 | 3 4 4 4 4 2 2 3 3 1 . . . 1 1 1 2 1 1 . 2 Utility 2 | . . 1 1 1 2 2 3 4 4 4 6 5 5 6 5 4 3 2 3 1 Weapon 2 | 1 1 2 2 2 3 3 2 2 2 1 1 . 1 2 1 1 2 3 2 2 Tool/Special . | . . . . . . . . . . . . . . . . . . . . . Unused Backups 30 | . 4 1 . . 5 1 . . . 2 . 1 . . 2 . . . . 14 Power 2 | . . . . . . . . . . . . . . . . . . . . 2 Propulsion 11 | . 3 1 . . 2 . . . . . . . . . . . . . . 5 Utility 12 | . . . . . 2 . . . . 2 . 1 . . 2 . . . . 5 Weapon 5 | . 1 . . . 1 1 . . . . . . . . . . . . . 2 Tool/Special . | . . . . . . . . . . . . . . . . . . . . . Average Slot Usage (%) 90 | . 97 88 85 85 87 89 88 76 88 97 94 93 93 91 94 87 89 86 82 87 Engine 1 | . 14 14 14 14 1 1 1 . . . . . . . . . . . . . Core 5 | . . . . . 7 5 5 7 7 10 11 10 10 10 10 9 9 8 8 . Reactor 2 | . . . . . . . . . . . . . . . . . . . . 7 Leg 11 | . 28 28 28 28 . . . . . . . . . . . . . . . 24 Hover 3 | . . . . . 34 28 27 23 1 . . . . . . . . . . . Flight 14 | . . . . . . 6 7 7 35 35 35 35 31 31 31 28 28 26 24 . Device 10 | . 11 3 . . 6 7 6 . . 9 11 10 14 18 18 14 18 17 17 9 Storage 6 | . 14 14 14 14 9 7 7 7 7 5 5 5 5 5 5 4 4 4 4 5 Processor 9 | . . . . . . 5 7 7 7 10 11 11 9 5 5 5 9 8 8 16 Hackware 6 | . . . . . 3 7 7 7 9 11 11 11 10 10 13 15 14 13 13 . Protection 4 | . . . . . 15 8 7 7 7 . . . 5 5 4 3 . . . 7 Energy Gun 1 | . 14 14 14 14 . . . . . . . . . . . . . 4 1 . Energy Cannon 1 | . 11 14 14 14 . . . . . . . . . . . . . . 2 . Ballistic Gun 2 | . 2 . . . . . . . . . . . . . . . . . . 8 Ballistic Cannon 1 | . . . . . . . . . 2 1 . . . . . . . . . 4 Special Weapon 1 | . . . . . . . . . . 1 5 4 5 5 4 4 3 4 1 . Peak Build Rating 236 | 6 8 8 8 7 42 52 50 41 47 80 80 86 105 109 109 126 145 148 173 236 Average Rating 112 | 3 7 7 7 7 39 45 48 41 40 72 80 83 100 102 106 114 130 140 144 203 On Entrance 62 | . 6 8 7 7 7 41 50 41 41 45 80 80 84 100 105 106 117 141 140 105 Avg Prop Armor Cover (%) 1 | . . . . . . 1 1 3 3 . . . . . . . . . . 3 Naked Turns . | . . . . . . . . . . . . . . . . . . . . . Heaviest Build 163 | 12 15 15 19 19 35 40 40 25 28 36 36 36 40 41 41 40 47 47 47 163 Greatest Support 176 | 20 20 20 20 20 36 40 40 30 30 39 37 43 40 41 43 44 47 47 50 176 Greatest Overweight (x) 2 | . . . . . 2 . 1 . . 1 . . 1 . . . 1 . . 1 Average Overweight (x) . | . . . . . . . . . . . . . . . . . . . . . Largest Inventory Capacity 25 | 8 8 8 10 10 10 10 10 10 10 10 10 10 10 10 10 10 10 10 10 25 Average Capacity 12 | 7 8 8 8 10 10 10 10 10 10 10 10 10 10 10 10 10 10 10 10 17 Most Carried 20 | 8 8 8 8 8 10 10 10 10 10 10 9 10 10 10 10 10 10 10 10 20 Average Carried 9 | 5 7 7 8 8 9 9 9 10 9 9 9 9 8 9 9 9 9 9 9 11 Final Capacity 20 | 8 8 8 10 10 10 10 10 10 10 10 10 10 10 10 10 10 10 10 10 20 Final Carried 14 | 6 8 8 8 8 10 10 10 10 10 9 9 8 10 10 9 10 10 10 10 14 Class Distribution -------------------- 25% | Hacker-Scout 21% | Scavenger-Gunner 19% | Mutant 11% | Hacker-Sprinter 8% | Scavenger-Tank 4% | Scavenger-Mutant 3% | Scientist-Scout 3% | Hacker-Mutant Dominant Class ---------------- Mutant | -10/Materials Mutant | -10/Mines Scavenger-Mutant | -10/Exiles Scavenger-Mutant | -9/Mines Mutant | -8/Materials Mutant | -7/Factory Mutant | -7/Storage Mutant | -7/Recycling Sprinter | -7/Scraptown Hacker-Scout | -5/Factory Hacker-Scout | -5/Waste Hacker-Scout | -5/Factory Hacker-Scout | -4/Factory Hacker-Sprinter | -4/Waste Hacker-Sprinter | -4/Factory Hacker-Sprinter | -3/Research Hacker-Scout | -3/Testing Hacker-Scout | -2/Research Hacker-Scout | -2/Quarantine Scavenger-Gunner | -2/Protoforge Resources | -11 -10 -10 -10 -9 -8 -7 -7 -7 -7 -5 -5 -5 -4 -4 -4 -3 -3 -2 -2 -2 ----------- Run | Yrd Mat Min Exi Min Mat Fac Sto Rec Scr Fac Was Fac Fac Was Fac Res Tes Res Qua Frg Matter Collected 8207 | 247 53 40 . 10 145 67 78 . 95 260 . 182 49 131 141 92 19 115 33 6450 Remotely . | . . . . . . . . . . . . . . . . . . . . . Salvage Created 14490 | . 245 303 . . 574 218 70 . . 323 . 145 222 989 381 32 . 133 174 10681 Parts 524 | . 17 11 . . 23 12 4 . . 10 . 7 13 5 17 . . 1 1 403 Haulers Intercepted 5 | . 1 . . . 3 . . . . . . . . . . . . . . 1 Recyclers Shooed . | . . . . . . . . . . . . . . . . . . . . . Parts Field Recycled . | . . . . . . . . . . . . . . . . . . . . . Retrieved Matter . | . . . . . . . . . . . . . . . . . . . . . Parts Self-Destructed . | . . . . . . . . . . . . . . . . . . . . . Prevented . | . . . . . . . . . . . . . . . . . . . . . Parts Restored . | . . . . . . . . . . . . . . . . . . . . . Kills | -11 -10 -10 -10 -9 -8 -7 -7 -7 -7 -5 -5 -5 -4 -4 -4 -3 -3 -2 -2 -2 ------- Run | Yrd Mat Min Exi Min Mat Fac Sto Rec Scr Fac Was Fac Fac Was Fac Res Tes Res Qua Frg Combat Hostiles Destroyed 194 | . 5 6 . . 4 3 1 . . 4 . 1 . . 4 . . . 2 164 Melee 8 | . . . . . 4 3 1 . . . . . . . . . . . . . Guns 96 | . . 2 . . . . . . . . . . . . . . . . . 94 Cannons 74 | . 5 4 . . . . . . . . . . . . . . . . 1 64 AOE 13 | . . . . . . . . . . 3 . . . . 4 . . . . 6 Classes Destroyed 27 | . 5 1 . . 4 1 . . . . . . . . . . . . 2 14 Worker 8 | . . . . . 3 1 . . . . . . 1 . 3 . . . . . Builder 5 | . . . . . . 1 1 . . . . . 2 . 1 . . . . . Tunneler 2 | . . . . . 1 . . . . . . 1 . . . . . . . . Hauler 5 | . 1 . . . 3 . . . . . . . . . . . . . . 1 Recycler 5 | . . 1 . . 2 . . . . 1 . . . . 1 . . . . . Carrier 1 | . . . . . . . . . . . . . . . . . . . . 1 Mechanic 4 | . . . . . . . . . . . . . . . . . . . . 4 Operator 10 | . 1 . . . . . 1 . . 1 . 2 1 . 2 . . . 1 1 Drone 14 | . . . . . . . . . . . . . . . . . . . . 14 Watcher 25 | . 2 . . . . 2 . . . 3 . 2 5 . 5 1 . 4 . 1 Swarmer 18 | . 3 . . . . 1 1 . . 3 . . . . 4 . . . . 6 Saboteur 9 | . . . . . . . . . . . . . . . . . . . . 9 Grunt 53 | . 2 6 . . 2 2 . . . 1 . . . . . . . . 1 39 Brawler 6 | . . . . . . . . . . . . . . . . . . . . 6 Duelist 11 | . . . . . . . . . . . . . . . . . . . 1 10 Protector 3 | . . . . . . . . . . . . . . . . . . . . 3 Researcher 1 | . . . . . . . . . . . . . . . . . . . 1 . Sentry 3 | . . . . . 1 . . . . . . . . . . . . . . 2 Specialist 2 | . . . . . . . . . . . . . . . . . . . . 2 Hunter 21 | . . . . . 1 . . . . . . 1 . . . . . . . 19 Programmer 9 | . . . . . . . . . . . . . . . . . . . . 9 Behemoth 1 | . . . . . . . . . . . . . . . . . . . . 1 Hotshot 1 | . . . . . . . . . . . . . . . . . . . . 1 Striker 24 | . . . . . . . . . . . . . . . . . . . . 24 Executioner 18 | . . . . . . . . . . . . . . . . . . . . 18 Elite 3 | . . . . . . . . . . . . . . . . . . . . 3 Scrapoid 1 | . . . . . . . . . . . . . . . . . . . . 1 Scraphulk 1 | . . . . . . . . . . . . . . . . . . . . 1 Best Kill Streak 16 | . 4 3 . . 7 2 1 . . 4 . 1 4 . 5 1 . 1 3 16 Combat Bots Only 15 | . 3 2 . . 2 1 1 . . 4 . 1 . . 4 . . . 2 15 Max Kills in Single Turn 3 | . 1 1 . . 1 1 1 . . 2 . 1 3 . 3 1 . 1 1 2 Gunslinging 1 | . . . . . . . . . . . . . . . . . . . . 1 Exploded 2 | . . . . . . . . . . 2 . . . . 2 . . . . 2 Melee 1 | . . . . . 1 1 1 . . . . . . . . . . . . . Uniques/NPCs Destroyed . | . . . . . . . . . . . . . . . . . . . . . Combat | -11 -10 -10 -10 -9 -8 -7 -7 -7 -7 -5 -5 -5 -4 -4 -4 -3 -3 -2 -2 -2 -------- Run | Yrd Mat Min Exi Min Mat Fac Sto Rec Scr Fac Was Fac Fac Was Fac Res Tes Res Qua Frg Hostile Shots Fired 1023 | . 23 37 . . 27 46 90 . . 24 . 19 29 . 44 13 25 11 45 590 Missed 497 | . 5 10 . . 11 17 48 . . 14 . 13 19 . 29 12 18 9 26 266 Hits 526 | . 18 27 . . 16 29 42 . . 10 . 6 10 . 15 1 7 2 19 324 Melee 9 | . . . . . . 1 . . . . . . . . . . . . 1 7 Projectile 517 | . 18 27 . . 16 28 42 . . 10 . 6 10 . 15 1 7 2 18 317 AOE 3 | . . . . . . . . . . . . . 3 . . . . . . . Critical Strikes 22 | . . 1 . . 1 1 . . . . . . 1 . 2 . . . . 16 Damage Taken 11827 | . 168 373 . . 285 390 321 . . 200 . 156 496 . 302 102 123 43 473 8395 Core 1945 | . 42 51 . . 20 44 57 . . 48 . 67 139 . 41 . 72 . 155 1209 Absorbed by Shields 1369 | . . . . . . 14 78 . . . . . . . . . . . . 1277 Redirected to Shielding 552 | . . . . . . . 25 . . . . . 39 . 37 63 . . . 388 Ignored by Resistances 87 | . . . . . . . . . . . . . . . . . 31 6 24 26 Regen/Repaired (Parts) 465 | . . . . . . 86 . . . . . 35 . . 264 . . . 32 48 Core Remaining (%) 87 | 100 . . . 62 96 . . . 85 . . 88 . . 84 . 94 . . . Volleys Fired 680 | . 21 31 . . . . . . . 31 . 41 23 58 68 47 13 17 12 318 Largest 4 | . 2 2 . . . . . . . 1 . 1 1 1 1 1 1 1 1 4 Hottest 364 | . 100 100 . . . . . . . 37 . . . . 49 . . 100 100 364 Shots Fired 977 | . 23 43 . . . . . . . 31 . 41 23 58 68 47 13 17 12 601 Gun 450 | . 3 12 . . . . . . . . . . . . . . . 1 . 434 Cannon 220 | . 20 31 . . . . . . . 5 . . . . . . . 1 2 161 Launcher 13 | . . . . . . . . . . 5 . . . . 2 . . . . 6 Special 294 | . . . . . . . . . . 21 . 41 23 58 66 47 13 15 10 . Kinetic 598 | . 1 . . . . . . . . 5 . . . . . . . . 2 590 Thermal 70 | . 22 43 . . . . . . . . . . . . . . . . . 5 Explosive 13 | . . . . . . . . . . 5 . . . . 2 . . . . 6 Electromagnetic 2 | . . . . . . . . . . . . . . . . . . 2 . . Impact 294 | . . . . . . . . . . 21 . 41 23 58 66 47 13 15 10 . Robot Hit Streak 50 | . 6 17 . . . . . . . 6 . 3 1 4 4 1 1 6 6 50 Robot Miss Streak 5 | . 1 3 . . . . . . . 2 . 1 2 2 5 2 1 1 1 3 Penetration Max 4 | . . . . . . . . . . . . . . . . . . . . 4 Secondary Targets 25 | . . . . . . . . . . . . . . . . . . . . 25 Max Gunslinging Chain 1 | . . . . . . . . . . . . . . . . . . . . 1 Shots Hit Robots 600 | . 17 30 . . 23 15 5 . . 8 . 7 4 12 11 1 1 6 7 453 Core Hits 347 | 1 9 12 . . 8 6 2 . . 6 . 3 7 2 11 . . . 3 277 Critical Kills 19 | . . . . . . . . . . 1 . . . . . . . . . 18 Critical Parts Destroyed 31 | . . . . . . . . . . 2 . 1 . 1 . . . 1 2 24 Critical Strikes 81 | . . . . . 1 2 . . . 3 . 2 . 1 . . . 1 2 69 Destroy 46 | . . . . . . . . . . . . . . . . . . . . 46 Blast 23 | . . . . . . . . . . . . . . . . . . . . 23 Smash 8 | . . . . . . . . . . 3 . 1 . 1 . . . 1 2 . Sever 3 | . . . . . 1 2 . . . . . . . . . . . . . . Impale 1 | . . . . . . . . . . . . 1 . . . . . . . . Melee Attacks 105 | . . . . . 39 27 9 . . 27 . 2 . . . . 1 . . . Impact 8 | . . . . . . . . . . 8 . . . . . . . . . . Slashing 75 | . . . . . 39 27 9 . . . . . . . . . . . . . Piercing 22 | . . . . . . . . . . 19 . 2 . . . . 1 . . . Sneak Attacks 14 | . . . . . 8 2 3 . . 1 . . . . . . . . . . Combat Hostiles . | . . . . . . . . . . . . . . . . . . . . . Follow-up Attacks . | . . . . . . . . . . . . . . . . . . . . . Damage Inflicted 43795 | 4 290 554 . . 1693 878 474 . . 774 . 546 799 1042 1644 115 44 376 963 33599 Guns 14872 | . 19 73 . . . . . . . . . . . . . . . . . 14780 Cannons 17351 | . 264 400 . . . . . . . . . . . . . . . . . 16687 Explosions 3839 | . . 80 . . . . . . . 169 . 88 382 . 682 . . . 432 2006 Melee 3335 | . . . . . 1693 878 474 . . 197 . 93 . . . . . . . . Ramming 149 | 4 7 1 . . . . . . . . . . . . . 11 . . . 126 Kinetic 29455 | . 8 . . . . . . . . . . . . . . . . . . 29447 Thermal 2936 | . 275 553 . . . . . . . . . 88 . . . . . . . 2020 Explosive 3671 | . . . . . . . . . . 169 . . 382 . 682 . . . 432 2006 Electromagnetic . | . . . . . . . . . . . . . . . . . . . . . Impact 4446 | . . . . . . . . . . 605 . 365 417 1042 962 104 44 376 531 . Slashing 3045 | . . . . . 1693 878 474 . . . . . . . . . . . . . Piercing 93 | . . . . . . . . . . . . 93 . . . . . . . . Highest Corruption 21 | . . . . . . . . . . . 7 7 5 5 5 . . . 3 21 Average Corruption 11 | . . . . . . . . . . . 7 7 5 5 3 . . . 2 15 Corruption Purged 5 | . . . . . . . . . . . . . . . 5 . . . . . Corruption Blocked . | . . . . . . . . . . . . . . . . . . . . . Effects 229 | . . . . . . . . . . . . 26 . 7 14 . . . 2 180 Message Errors 52 | . . . . . . . . . . . . 3 . 1 5 . . . 1 42 Matter Fused 52 | . . . . . . . . . . . . 11 . 2 3 . . . . 36 Heat Flow Errors 26 | . . . . . . . . . . . . 4 . . 2 . . . 1 19 Energy Discharges 29 | . . . . . . . . . . . . 3 . 1 1 . . . . 24 Parts Rejected 4 | . . . . . . . . . . . . 1 . . . . . . . 3 Parts Fused 3 | . . . . . . . . . . . . . . . 1 . . . . 2 Data Loss (minor) 16 | . . . . . . . . . . . . 2 . 2 1 . . . . 11 Data Loss (major) 12 | . . . . . . . . . . . . 1 . 1 1 . . . . 9 Alerts 4 | . . . . . . . . . . . . 1 . . . . . . . 3 Misdirections 14 | . . . . . . . . . . . . . . . . . . . . 14 Weapon Failures 17 | . . . . . . . . . . . . . . . . . . . . 17 Overload Shots . | . . . . . . . . . . . . . . . . . . . . . Overflow Damage 4443 | . 12 5 . . 421 134 135 . . 289 . 267 139 348 511 49 . 158 342 1633 Projectiles 3594 | . 12 5 . . . . . . . 238 . 264 139 348 511 49 . 158 319 1551 Explosions 54 | . . . . . . . . . . . . . . . . . . . 23 31 Melee 795 | . . . . . 421 134 135 . . 51 . 3 . . . . . . . 51 Knockbacks 52 | . . . . . . . . . . 2 . 2 1 2 4 1 . 2 1 37 Impact 16 | . . . . . . . . . . 2 . 2 1 2 4 1 . 2 1 1 Kinetic 35 | . . . . . . . . . . . . . . . . . . . . 35 Secondary 1 | . . . . . . . . . . . . . . . . . . . . 1 Self-Inflicted Damage 38 | . . . . . . . . . . 33 . . . . . 5 . . . . Shots 1 | . . . . . . . . . . 1 . . . . . . . . . . Rammed 1 | . . . . . . . . . . . . . . . . 1 . . . . Targets Rammed 8 | 1 2 1 . . . . . . . . . . . . . 1 . . . 3 Kicked 7 | 1 2 1 . . . . . . . . . . . . . . . . . 3 Crushed . | . . . . . . . . . . . . . . . . . . . . . Highest Temperature 235 | . 129 227 . . 11 . 3 . 207 162 . 218 6 . 207 20 71 40 226 235 Average Temperature 77 | . 68 99 . . 4 . 3 . 76 45 . 112 6 . 133 9 31 18 124 94 Received Heat Transfer 1007 | . 36 225 . . 108 75 62 . . 18 . 27 45 . 9 . 12 9 45 336 Effects 2 | . . 1 . . . . . . 1 . . . . . . . . . . . Energy Bleed 2 | . . 1 . . . . . . 1 . . . . . . . . . . . Siege Activations . | . . . . . . . . . . . . . . . . . . . . . Martial Activations . | . . . . . . . . . . . . . . . . . . . . . Shielding Activations . | . . . . . . . . . . . . . . . . . . . . . Robots Disrupted . | . . . . . . . . . . . . . . . . . . . . . Combat Hostiles . | . . . . . . . . . . . . . . . . . . . . . Robots Corrupted 26 | . . . . . . . . . . 4 . 3 1 5 6 1 . 4 2 . Combat Hostiles 5 | . . . . . . . . . . 1 . 1 . 2 . . . . 1 . Parts Fried 36 | . . . . . . . . . . 5 . 7 2 5 9 2 . 3 1 2 Impact Corruptions 66 | . . . . . . . . . . 10 . 9 2 9 17 2 . 6 9 2 Robots Melted . | . . . . . . . . . . . . . . . . . . . . . Combat Hostiles . | . . . . . . . . . . . . . . . . . . . . . Parts Melted 9 | . 1 3 . . 1 . . . . . . 1 . . . . . . . 3 Heat Transferred 1806 | . 580 1176 . . . . . . . . . 50 . . . . . . . . Parts Sabotaged . | . . . . . . . . . . . . . . . . . . . . . Parts Stolen . | . . . . . . . . . . . . . . . . . . . . . Parts Stripped . | . . . . . . . . . . . . . . . . . . . . . Power Chain Reactions . | . . . . . . . . . . . . . . . . . . . . . Alert | -11 -10 -10 -10 -9 -8 -7 -7 -7 -7 -5 -5 -5 -4 -4 -4 -3 -3 -2 -2 -2 ------- Run | Yrd Mat Min Exi Min Mat Fac Sto Rec Scr Fac Was Fac Fac Was Fac Res Tes Res Qua Frg Maximum Alert Level 5 | . . . . . . . . . . 1 . 1 2 . 2 1 3 2 2 5 Low Security (%) 43 | 100 100 100 . 100 100 100 100 100 . 83 100 56 17 100 38 . 34 . 13 . Level 1 18 | . . . . . . . . . . 16 . 43 14 . 44 100 21 72 69 7 Level 2 8 | . . . . . . . . . . . . . 67 . 17 . 42 27 16 3 Level 3 . | . . . . . . . . . . . . . . . . . 1 . . 1 Level 4 4 | . . . . . . . . . . . . . . . . . . . . 12 Level 5 25 | . . . . . . . . . . . . . . . . . . . . 74 High Security . | . . . . . . . . . . . . . . . . . . . . . Max Security . | . . . . . . . . . . . . . . . . . . . . . Peak Influence 4576 | . 65 56 . . 131 140 88 30 . 361 65 315 479 151 580 305 702 439 447 4576 Initial 332 | . . . . . . 55 45 28 . . 65 45 143 151 23 297 137 332 146 243 Average 1017 | . 14 15 . . 66 63 63 14 . 102 65 182 373 96 236 268 381 347 312 2722 Influence Increases 11065 | . 151 196 . . 353 354 138 12 . 712 . 614 595 22 1006 107 694 199 396 5516 Destroy 0b10 Robot/C 3860 | . 100 120 . . 120 140 20 . . 80 . 20 . . 80 . . . 60 3120 Destroy 0b10 Robot/NC 405 | . 20 5 . . 45 20 10 . . 25 . 25 45 . 60 5 . 20 5 120 Destroy Leader 748 | . 26 30 . . 46 34 . . . 16 . 14 10 . 20 2 . 8 10 532 Allied During Kill 167 | . . . . . 8 20 . . . . . . . . . . . . . 139 Successful Hack 356 | . 5 . . . 6 58 17 12 . 36 . 46 22 . 64 10 47 . 18 15 Disable Machine 990 | . . 30 . . . . 45 . . 30 . 165 270 . 120 30 105 15 60 120 Anti-Garrison Action 350 | . . . . . . . . . . . . . . . . . 200 . . 150 Destroy Structure 1189 | . . 11 . . 8 7 1 . . 150 . 104 98 22 212 30 12 21 33 480 Partial Spotted 450 | . . . . . 60 45 . . . 105 . 45 15 . 60 15 15 30 . 60 Lose Combat Pursuer 2550 | . . . . . 60 30 45 . . 270 . 195 135 . 390 15 315 105 210 780 Influence Decreases 6490 | . 151 186 10 . 230 376 166 85 . 526 121 386 454 423 473 429 347 529 225 1373 Entered New Map 1702 | . . . 10 . . 68 56 45 . . 121 20 150 283 10 269 107 259 115 189 Time Decay 3688 | . 151 166 . . 200 278 90 10 . 356 . 356 294 140 363 150 140 170 80 744 Search Patrol Dispatched 300 | . . . . . . . . . . . . . . . 100 . 100 100 . . Lost Part 480 | . . 20 . . 10 10 20 . . 20 . 10 10 . . 10 . . 30 340 Lost Ally 140 | . . . . . 20 20 . . . . . . . . . . . . . 100 Purge Threat 180 | . . . . . . . . 30 . 150 . . . . . . . . . . Squads Dispatched 64 | . 1 1 . . 2 2 2 . . 12 . 7 7 . 12 2 1 1 5 9 Investigation 31 | . . . . . 2 . . . . 8 . 3 5 . 5 1 1 . 1 5 Extermination 17 | . . . . . . 2 1 . . 3 . 2 2 . 4 1 . 1 1 . Reinforcement 12 | . 1 . . . . . 1 . . 1 . 2 . . 2 . . . 1 4 Assault 1 | . . 1 . . . . . . . . . . . . . . . . . . Garrison 3 | . . . . . . . . . . . . . . . 1 . . . 2 . Intercept . | . . . . . . . . . . . . . . . . . . . . . Searches Triggered 3 | . . . . . . . . . . . . . . . 1 . 1 1 . . Construction Impeded 2 | . . . . . . . . . . . . 1 . . 1 . . . . . Haulers Reinforced . | . . . . . . . . . . . . . . . . . . . . . Active Scanning Responses . | . . . . . . . . . . . . . . . . . . . . . Cargo Convoy Interrupts 1 | . . . . . . . . . . . . 1 . . . . . . . . Stealth | -11 -10 -10 -10 -9 -8 -7 -7 -7 -7 -5 -5 -5 -4 -4 -4 -3 -3 -2 -2 -2 --------- Run | Yrd Mat Min Exi Min Mat Fac Sto Rec Scr Fac Was Fac Fac Was Fac Res Tes Res Qua Frg Distress Signals 24 | . . . . . 1 . . . . 5 . 1 4 . 3 . . 2 1 7 Communications Jammed . | . . . . . . . . . . . . . . . . . . . . . Distress Signals . | . . . . . . . . . . . . . . . . . . . . . Times Spotted 611 | . 12 6 . 3 16 11 12 . . 30 5 28 19 . 33 10 22 14 22 368 Peak Tracking Total 17 | . 4 2 . 3 5 3 7 . . 9 5 7 10 . 15 7 8 5 11 17 Tactical Retreats 71 | . . . . . 3 2 2 . . 8 . 5 6 . 10 1 4 3 4 23 Traps | -11 -10 -10 -10 -9 -8 -7 -7 -7 -7 -5 -5 -5 -4 -4 -4 -3 -3 -2 -2 -2 ------- Run | Yrd Mat Min Exi Min Mat Fac Sto Rec Scr Fac Was Fac Fac Was Fac Res Tes Res Qua Frg Traps Triggered 8 | . . . . . . 2 . . . 1 . 1 2 . . 1 . . . 1 Indirectly . | . . . . . . . . . . . . . . . . . . . . . Trap Hack Attempts . | . . . . . . . . . . . . . . . . . . . . . Triggered . | . . . . . . . . . . . . . . . . . . . . . Disarmed . | . . . . . . . . . . . . . . . . . . . . . Reprogrammed . | . . . . . . . . . . . . . . . . . . . . . Reused . | . . . . . . . . . . . . . . . . . . . . . Traps Extracted . | . . . . . . . . . . . . . . . . . . . . . Installed . | . . . . . . . . . . . . . . . . . . . . . Triggered . | . . . . . . . . . . . . . . . . . . . . . Objects Rigged 3 | . . . . . . . . . . . . . . . . . . . 3 . Exploded 1 | . . . . . . . . . . . . . . . . . . . 1 . Machines | -11 -10 -10 -10 -9 -8 -7 -7 -7 -7 -5 -5 -5 -4 -4 -4 -3 -3 -2 -2 -2 ---------- Run | Yrd Mat Min Exi Min Mat Fac Sto Rec Scr Fac Was Fac Fac Was Fac Res Tes Res Qua Frg Machines Disabled 69 | . . 2 . . . . 3 . . 2 . 11 18 . 8 2 7 1 4 11 Max in Single Turn 8 | . . 2 . . . . 1 . . 1 . 5 8 . 4 1 1 1 3 2 Garrison Access 6 | . . . . . . . . . . 1 . 1 1 . . . 1 1 . 1 Machines Repaired . | . . . . . . . . . . . . . . . . . . . . . Machines Dismantled . | . . . . . . . . . . . . . . . . . . . . . Machines Sabotaged . | . . . . . . . . . . . . . . . . . . . . . Overloaded Fab Kills . | . . . . . . . . . . . . . . . . . . . . . Hacking | -11 -10 -10 -10 -9 -8 -7 -7 -7 -7 -5 -5 -5 -4 -4 -4 -3 -3 -2 -2 -2 --------- Run | Yrd Mat Min Exi Min Mat Fac Sto Rec Scr Fac Was Fac Fac Was Fac Res Tes Res Qua Frg Machines Accessed 111 | . 4 . 1 . 8 13 3 3 1 22 . 12 12 . 12 2 5 4 2 7 Terminals 50 | . 4 . . . 5 7 3 2 . 9 . 5 4 . 3 1 2 1 1 3 Fabricators 9 | . . . . . . 3 . . . 1 . 1 2 . 1 . . 1 . . Repair Stations 6 | . . . . . . 1 . . . . . 1 . . 1 . 1 . 1 1 Recycling Units 27 | . . . . . 1 1 . 1 . 7 . 3 5 . 5 1 . . . 3 Scanalyzers 9 | . . . . . 2 1 . . . 2 . 1 . . 1 . 1 1 . . Garrison Access 8 | . . . . . . . . . . 3 . 1 1 . 1 . 1 1 . . Total Hacks 260 | . 10 . 4 . 25 29 8 7 4 47 . 24 27 . 36 3 15 4 5 12 Successful 137 | . 4 . 4 . 7 17 2 4 4 26 . 14 12 . 19 2 7 4 4 7 Failed 121 | . 6 . . . 17 12 6 3 . 21 . 10 15 . 17 1 7 . 1 5 Catastrophic 17 | . . . . . 3 3 . 1 . 4 . 1 2 . 2 . . . . 1 Database Lockouts 2 | . . . . . 1 . . . . . . . . . . . 1 . . . Manual 114 | . 7 . . . 15 14 4 3 . 17 . 8 14 . 12 1 2 1 5 11 Terminals 142 | . 10 . . . 17 18 8 6 . 26 . 11 7 . 19 2 7 1 4 6 Fabricators 16 | . . . . . . 5 . . . 1 . 3 5 . 1 . . 1 . . Repair Stations 11 | . . . . . . 2 . . . . . 2 . . 2 . 3 . 1 1 Recycling Units 49 | . . . . . 3 1 . 1 . 11 . 3 13 . 11 1 . . . 5 Scanalyzers 20 | . . . . . 5 3 . . . 6 . 2 . . 1 . 2 1 . . Garrison Access 14 | . . . . . . . . . . 3 . 3 2 . 2 . 3 1 . . Terminal Hacks 50 | . 3 . 4 . 2 6 1 2 4 10 . 4 2 . 6 1 3 1 . 1 Record 9 | . . . 4 . . . . . 4 . . . . . . . 1 . . . Robot Analysis 2 | . . . . . 1 . . . . . . . . . 1 . . . . . Prototype ID Bank 7 | . 2 . . . . 1 . . . 2 . . . . . . 2 . . . Open Door 2 | . . . . . . . 1 . . . . . . . . . . 1 . . Branch Access Points 3 | . . . . . 1 1 . . . . . . . . . 1 . . . . Terminal Index 4 | . . . . . . 1 . . . 1 . 1 1 . . . . . . . Fabricator Index 1 | . . . . . . . . . . . . . . . . . . . . 1 Recycling Unit Index 1 | . . . . . . . . . . 1 . . . . . . . . . . Scanalyzer Index 3 | . . . . . . 1 . . . 1 . . . . 1 . . . . . Alert Level 3 | . . . . . . 1 . . . . . 1 . . 1 . . . . . Unreport Threat 3 | . . . . . . . . 2 . 1 . . . . . . . . . . Locate Traps 7 | . 1 . . . . . . . . 1 . 2 . . 3 . . . . . Dispatch Records 1 | . . . . . . 1 . . . . . . . . . . . . . . Recall Investigation 1 | . . . . . . . . . . . . . 1 . . . . . . . Recall Extermination 1 | . . . . . . . . . . 1 . . . . . . . . . . Registered Prototypes 1 | . . . . . . . . . . 1 . . . . . . . . . . Zone Layout 1 | . . . . . . . . . . 1 . . . . . . . . . . Fabricator Hacks 1 | . . . . . . 1 . . . . . . . . . . . . . . Build 1 | . . . . . . 1 . . . . . . . . . . . . . . Repair Station Hacks 7 | . . . . . . 2 . . . . . 2 . . 2 . 1 . . . Scan Component 4 | . . . . . . 1 . . . . . 1 . . 1 . 1 . . . Repair 3 | . . . . . . 1 . . . . . 1 . . 1 . . . . . Recycling Unit Hacks 7 | . . . . . . 1 . 1 . 2 . . 1 . 2 . . . . . Retrieve Components 7 | . . . . . . 1 . 1 . 2 . . 1 . 2 . . . . . Scanalyzer 14 | . . . . . 3 2 . . . 4 . 2 . . 1 . 1 1 . . Retrieve Study 14 | . . . . . 3 2 . . . 4 . 2 . . 1 . 1 1 . . Garrison Access Hacks 4 | . . . . . . . . . . 1 . 1 1 . . . . 1 . . Seal Access 4 | . . . . . . . . . . 1 . 1 1 . . . . 1 . . Unauthorized Hacks 54 | . 1 . . . 2 5 1 1 . 9 . 5 8 . 8 1 2 1 4 6 Terminals 22 | . 1 . . . 2 3 1 1 . 2 . 2 2 . 2 . 1 . 3 2 Assimilate 1 | . . . . . . . . . . . . . . . . . . . 1 . Botnet 19 | . 1 . . . 2 3 1 1 . 2 . 2 2 . 2 . 1 . 1 1 Detonate 1 | . . . . . . . . . . . . . . . . . . . 1 . Disrupt 1 | . . . . . . . . . . . . . . . . . . . . 1 Fabricators 5 | . . . . . . 2 . . . . . . 1 . 1 . . 1 . . Liberate 5 | . . . . . . 2 . . . . . . 1 . 1 . . 1 . . Repair Stations 2 | . . . . . . . . . . . . . . . . . . . 1 1 Patch 2 | . . . . . . . . . . . . . . . . . . . 1 1 Recycling Units 24 | . . . . . . . . . . 7 . 3 5 . 5 1 . . . 3 Fedlink 22 | . . . . . . . . . . 7 . 3 5 . 5 1 . . . 1 Scrapoids 1 | . . . . . . . . . . . . . . . . . . . . 1 Scraphulk 1 | . . . . . . . . . . . . . . . . . . . . 1 Scanalyzers . | . . . . . . . . . . . . . . . . . . . . . Garrison Access 1 | . . . . . . . . . . . . . . . . . 1 . . . Jam 1 | . . . . . . . . . . . . . . . . . 1 . . . Data Cores Recovered 6 | . 1 . . . . . . . . 1 . . 1 . 2 . . . 1 . Used . | . . . . . . . . . . . . . . . . . . . . . Hacking Detections 71 | . 4 . . . 7 9 4 2 . 11 . 7 8 . 9 1 4 . 1 4 Full Trace Events 4 | . . . . . 3 . . . . 1 . . . . . . . . . . Feedback Events . | . . . . . . . . . . . . . . . . . . . . . Feedback Blocked . | . . . . . . . . . . . . . . . . . . . . . Robot Schematics Acquired 2 | . . . . . . . . . . . . . . . . . . . 2 . Robots Built . | . . . . . . . . . . . . . . . . . . . . . Authchips . | . . . . . . . . . . . . . . . . . . . . . Time . | . . . . . . . . . . . . . . . . . . . . . Total Robot Build Rating . | . . . . . . . . . . . . . . . . . . . . . Part Schematics Acquired 2 | . . . . . . . . . . . . . . . . . . . 2 . Parts Built 2 | . . . . . . 2 . . . . . . . . . . . . . . Authchips . | . . . . . . . . . . . . . . . . . . . . . Time 95 | . . . . . . 95 . . . . . . . . . . . . . . Total Part Build Rating 10 | . . . . . . 10 . . . . . . . . . . . . . . Part Studies Acquired 13 | . . . . . 2 2 . . . 4 . 2 . . 1 . 1 1 . . Parts Repaired 3 | . . . . . . 1 . . . . . 1 . . 1 . . . . . Time 146 | . . . . . . 22 . . . . . 56 . . 68 . . . . . Parts Recycled . | . . . . . . . . . . . . . . . . . . . . . Recycled Matter . | . . . . . . . . . . . . . . . . . . . . . Retrieved Matter . | . . . . . . . . . . . . . . . . . . . . . Retrieved Components 7 | . . . . . . 1 . 1 . 3 . . . . 2 . . . . . Parts Scanalyzed . | . . . . . . . . . . . . . . . . . . . . . Part Schematics Acquired . | . . . . . . . . . . . . . . . . . . . . . Parts Damaged . | . . . . . . . . . . . . . . . . . . . . . Bothacking | -11 -10 -10 -10 -9 -8 -7 -7 -7 -7 -5 -5 -5 -4 -4 -4 -3 -3 -2 -2 -2 ------------ Run | Yrd Mat Min Exi Min Mat Fac Sto Rec Scr Fac Was Fac Fac Was Fac Res Tes Res Qua Frg Used RIF Installer . | . . . . . . . . . . . . . . . . . . . . . Robots Hacked . | . . . . . . . . . . . . . . . . . . . . . Non-combat . | . . . . . . . . . . . . . . . . . . . . . Combat . | . . . . . . . . . . . . . . . . . . . . . Robot Hacks Applied . | . . . . . . . . . . . . . . . . . . . . . Relay Couplers Released 1 | . . . . . . . . . . . . . . . . . . . . 1 Machine Destruction 1 | . . . . . . . . . . . . . . . . . . . . 1 Fabnet Peak Effective % . | . . . . . . . . . . . . . . . . . . . . . Robots Rewired . | . . . . . . . . . . . . . . . . . . . . . Allies Hacked . | . . . . . . . . . . . . . . . . . . . . . Hacks Repelled . | . . . . . . . . . . . . . . . . . . . . . Allies | -11 -10 -10 -10 -9 -8 -7 -7 -7 -7 -5 -5 -5 -4 -4 -4 -3 -3 -2 -2 -2 -------- Run | Yrd Mat Min Exi Min Mat Fac Sto Rec Scr Fac Was Fac Fac Was Fac Res Tes Res Qua Frg Total Allies 10 | . . 1 . . . 3 . . . . . . . . . . . . . 6 Largest Group 6 | . . 1 1 1 1 3 . . . . . . . . . . . . . 6 Highest-Rated Group 462 | . . 31 31 31 31 90 . . . . . . . . . . . . . 462 Highest-Rated Ally 139 | . . 31 31 31 31 30 . . . . . . . . . . . . . 139 Total Orders . | . . . . . . . . . . . . . . . . . . . . . Ally Attacks 96 | . . . . 2 22 24 . . . . . . . . . . . . . 48 Total Damage 3058 | . . . . 42 356 785 . . . . . . . . . . . . . 1875 Kills 15 | . . . . . 2 4 . . . . . . . . . . . . . 9 Allies Corrupted . | . . . . . . . . . . . . . . . . . . . . . Allies Melted 2 | . . . . . . . . . . . . . . . . . . . . 2 Intel | -11 -10 -10 -10 -9 -8 -7 -7 -7 -7 -5 -5 -5 -4 -4 -4 -3 -3 -2 -2 -2 ------- Run | Yrd Mat Min Exi Min Mat Fac Sto Rec Scr Fac Was Fac Fac Was Fac Res Tes Res Qua Frg Active Infowar (turns) 9728 | . . . . . . 453 181 42 314 1211 18 809 652 298 967 213 290 349 160 3771 Optics 8242 | . . . . . . 453 181 42 314 1210 18 809 544 . . 101 290 349 160 3771 Sensors 4885 | . . . . . . . . . . 1170 18 783 652 298 967 213 267 328 132 57 Cloaking 94 | . . . . . . . . . . . . . . 73 18 . 3 . . . Robot Analysis Total 2 | . . . . . 1 . . . . . . . . . 1 . . . . . Derelict Logs Recovered 4 | . . 2 . 2 . . . . . . . . . . . . . . . . Drone Launches . | . . . . . . . . . . . . . . . . . . . . . Drone Recoveries . | . . . . . . . . . . . . . . . . . . . . . Exploration | -11 -10 -10 -10 -9 -8 -7 -7 -7 -7 -5 -5 -5 -4 -4 -4 -3 -3 -2 -2 -2 ------------- Run | Yrd Mat Min Exi Min Mat Fac Sto Rec Scr Fac Was Fac Fac Was Fac Res Tes Res Qua Frg Turns Passed 12139 | 52 542 575 283 131 491 604 181 42 314 1211 18 809 652 298 967 309 290 349 160 3861 Spaces Moved 18062 | 36 387 388 234 110 681 927 264 81 1072 2902 77 1825 1571 417 1884 652 635 637 391 2891 Core 140 | 6 . . . . . . . . . . . . . . . . . . . 134 Treads . | . . . . . . . . . . . . . . . . . . . . . Legs 3681 | 1 387 388 234 110 4 . . . . . . . . . . . . . . 2557 Wheels 29 | 29 . . . . . . . . . . . . . . . . . . . . Hover 1970 | . . . . . 677 927 264 81 21 . . . . . . . . . . . Flight 12242 | . . . . . . . . . 1051 2902 77 1825 1571 417 1884 652 635 637 391 200 Fastest Speed 18 | 50 120 120 120 120 48 48 48 52 24 20 22 21 23 23 19 18 18 22 22 27 Average Speed 41 | 92 120 120 120 120 48 48 51 52 24 21 22 23 23 23 23 21 21 22 23 86 Slowest Speed 180 | 120 120 120 120 120 180 52 112 52 52 101 22 24 92 24 24 23 90 22 27 178 Overloaded Moves 63 | . . . . . . . . . . . . . . . 27 8 28 . . . Propulsion Burnouts . | . . . . . . . . . . . . . . . . . . . . . Robots Hopped 93 | . . . . . . . . . . 19 . 3 9 3 10 3 22 8 10 6 Potential Cave-ins 1 | . . . . . . . . . . . . . . . . . . . . 1 Cave-ins Triggered . | . . . . . . . . . . . . . . . . . . . . . Exploration Rate (%) 49 | 4 62 70 58 31 61 36 43 21 85 67 76 42 36 98 46 12 54 24 55 60 Regions Visited 20 Branch Regions 9 Pre-discovered Areas 3 | . . . 1 . . . . . 1 1 . . . . . . . . . . Known Exits Taken 8 | . . . . 1 . 1 . . . . . 1 . . 1 1 1 1 1 . Unknown Exits Taken 8 | 1 1 1 1 . 1 . 1 1 1 . . . . . . . . . . . Scrap Searched 6 | . . 1 . 1 . . . . 4 . . . . . . . . . . . Spaces Dug 262 | . . . . . 8 7 1 . . 52 . 26 10 14 62 44 6 6 2 24 Terrain Destroyed 650 | . . 11 . . 8 7 1 . . 78 . 65 50 20 106 45 6 7 10 236 Melee 38 | . . . . . 8 7 1 . . 22 . . . . . . . . . . Projectile 343 | . . . . . . . . . . 14 . 29 14 20 47 45 6 7 4 157 AOE 269 | . . 11 . . . . . . . 42 . 36 36 . 59 . . . 6 79 Terrain Rammed . | . . . . . . . . . . . . . . . . . . . . . Walls Destroyed . | . . . . . . . . . . . . . . . . . . . . . Machines Disabled . | . . . . . . . . . . . . . . . . . . . . . Actions | -11 -10 -10 -10 -9 -8 -7 -7 -7 -7 -5 -5 -5 -4 -4 -4 -3 -3 -2 -2 -2 --------- Run | Yrd Mat Min Exi Min Mat Fac Sto Rec Scr Fac Was Fac Fac Was Fac Res Tes Res Qua Frg Total 21407 | 52 444 456 236 109 765 1026 289 80 1121 3411 77 2161 1828 555 2333 774 750 820 436 3684 Wait 2133 | . 17 25 1 . 2 48 7 . 31 419 1 265 224 77 373 56 95 168 32 292 Move 17863 | 35 386 387 233 109 680 926 263 80 1071 2865 76 1818 1553 410 1864 646 592 620 370 2879 Hop 89 | . . . . . . . . . . 18 . 3 9 3 9 3 20 8 10 6 Pick Up 98 | 9 7 2 . . 11 7 3 . 4 14 . 2 5 1 4 4 2 1 1 21 Fast Attach 108 | 3 1 . 1 . 12 3 . . 4 4 . 5 2 1 1 3 7 2 2 57 Attach 59 | 3 . 1 . . 2 2 . . 5 10 . 2 3 1 3 2 4 . 2 19 Detach 20 | . . . . . . . . . . 1 . 1 1 . . 1 4 1 2 9 Swap 71 | 1 3 4 . . 1 7 4 . . 7 . 3 5 2 6 4 3 . 1 20 Drop 138 | . 7 5 1 . 18 6 3 . 6 15 . 5 3 2 5 8 9 3 4 38 Fire 680 | . 21 31 . . . . . . . 31 . 41 23 58 68 47 13 17 12 318 Melee 105 | . . . . . 39 27 9 . . 27 . 2 . . . . 1 . . . Ram 1 | . . . . . . . . . . . . . . . . . . . . 1 Kick 7 | 1 2 1 . . . . . . . . . . . . . . . . . 3 Crush . | . . . . . . . . . . . . . . . . . . . . . Escape Stasis 14 | . . . . . . . . . . . . 14 . . . . . . . . Rewire 1 | . . . . . . . . . . . . . . . . . . . . 1 Trap . | . . . . . . . . . . . . . . . . . . . . . Miscellaneous 20 | . . . . . . . . . . . . . . . . . . . . 20 Route ------- -11/Scrapyard -10/Materials (discovered 3 exits: [*Mat x2] / [*Min]) -10/Mines (discovered 2 exits: [*Mat] / *Exi) -10/Exiles -9/Mines (discovered 2 exits: *Mat x2) -8/Materials -7/Factory (discovered 5 exits: [*Fac] / *Sto x2 / Low x2) -7/Storage -7/Recycling -7/Scraptown -5/Factory (discovered 5 exits: *Fac x3 / *Upp x2) -5/Waste -5/Factory (discovered 3 exits: *Fac x3) -4/Factory (discovered 2 exits: *Res / [*Upp]) -4/Waste -4/Factory -3/Research (discovered 2 exits: *Tes x2) -3/Testing -2/Research -2/Quarantine (discovered 3 exits: [*Acc] / *Sec / *Frg) -2/Protoforge (discovered 1 exit: [*Acc]) History --------- Turn | Location | Event 28 | -11/Scrapyard | Discovered new exit (range 14) 53 | -11/Scrapyard | Entered Materials 220 | -10/Materials | Discovered new exit (range 13) 309 | -10/Materials | Build established: Mutant 420 | -10/Materials | Discovered new exit (range 6) 513 | -10/Materials | Discovered new exit (range 11) 595 | -10/Materials | Entered Mines 708 | -10/Mines | Learned Materials stockpile data 997 | -10/Mines | Learned Materials security intel 1007 | -10/Mines | Discovered new exit (range 8) 1135 | -10/Mines | Met a Derelict testing a Signal Generator 1158 | -10/Mines | Deemed a non-threat by the Exiles lab entrance 1158 | -10/Mines | Discovered new exit (range 5) 1170 | -10/Mines | Entered Exiles 1170 | -10/Exiles | Accompanied by 1 ally 1203 | -10/Exiles | Met 8R-AWN 1221 | -10/Exiles | Met EX-HEX 1270 | -10/Exiles | Met EX-DEC 1274 | -10/Exiles | Learned location of Zion (-6) 1390 | -10/Exiles | Build established: Scavenger-Mutant 1439 | -10/Exiles | Discovered new exit (range 12) 1453 | -10/Exiles | Entered Mines 1453 | -9/Mines | Accompanied by 1 ally 1566 | -9/Mines | Identified exit to Materials 1573 | -9/Mines | Discovered exit to Materials (range 10) 1584 | -9/Mines | Entered Materials 1584 | -8/Materials | Accompanied by 1 ally 1584 | -8/Materials | Evolved 4 slots: Propulsion x2, Utility x2 1906 | -8/Materials | Discovered new exit (range 16) 1913 | -8/Materials | Build established: Mutant 2013 | -8/Materials | Central database locked down 2075 | -8/Materials | Entered Factory 2075 | -7/Factory | Evolved 2 slots: Propulsion x1, Utility x1 2076 | -7/Factory | Identified exit to Lower Caves 2298 | -7/Factory | Fabricated Cloaking Device? 2342 | -7/Factory | Repaired Greatsword 2368 | -7/Factory | Identified exit to Storage 2593 | -7/Factory | Discovered new exit (range 5) 2649 | -7/Factory | Found Powered Armor 2679 | -7/Factory | Entered Storage 2858 | -7/Storage | Used back door to open Recycling access 2858 | -7/Storage | Discovered new exit (range 5) 2860 | -7/Storage | Entered Recycling 2889 | -7/Recycling | Scanned before Scraplab entrance 2896 | -7/Recycling | Entered Scraplab 2901 | -7/Recycling | Discovered new exit (range 3) 2902 | -7/Recycling | Entered Scraptown 2999 | -7/Scraptown | Visited UFD Registry 2999 | -7/Scraptown | Registered with UFD as "Longhacker" 3003 | -7/Scraptown | Visited Artisan Demo Area 3005 | -7/Scraptown | Visited Scrapoid Research Area 3011 | -7/Scraptown | Visited Fellowship of the Rings 3015 | -7/Scraptown | Visited Supply Room 3025 | -7/Scraptown | Visited Cave Peace 3028 | -7/Scraptown | Visited Spacefarers 3042 | -7/Scraptown | Visited Junk Repository 3053 | -7/Scraptown | Visited Junk Repository 3058 | -7/Scraptown | Visited DA-N13 Charitable Foundation 3059 | -7/Scraptown | Found DCF Scrap (27 items) 3094 | -7/Scraptown | Discovered new exit (range 3) 3109 | -7/Scraptown | Visited Junk Cannon Lab 3111 | -7/Scraptown | Found Prototype Special Weapon 3111 | -7/Scraptown | Identified Junk Cannon 3122 | -7/Scraptown | Visited Abandonware Association 3125 | -7/Scraptown | Learned abandonware demo "KABOOM.EXE" 3130 | -7/Scraptown | Visited Chapter 10 3133 | -7/Scraptown | Visited Science Testing Area 3174 | -7/Scraptown | Visited Scrapoid Pod Storage 3204 | -7/Scraptown | Met Optimus 3204 | -7/Scraptown | Accepted into 0bPrime 3216 | -7/Scraptown | Entered Factory 3216 | -5/Factory | Evolved 4 slots: Power x1, Propulsion x1, Utility x2 3217 | -5/Factory | Discovered new exit (range 8) 3249 | -5/Factory | Discovered new exit (range 7) 3265 | -5/Factory | Identified exit to Factory 3343 | -5/Factory | Discovered new exit (range 7) 3357 | -5/Factory | Identified exit to Upper Caves 3392 | -5/Factory | Loaded intel: 8 recycling unit locations 3552 | -5/Factory | Build established: Hacker-Scout 3642 | -5/Factory | Spotted B-75 Beast 3644 | -5/Factory | Learned location of Protoforge (-2) 3661 | -5/Factory | Discovered exit to Upper Caves (range 8) 3945 | -5/Factory | Discovered exit to Factory (range 5) 4427 | -5/Factory | Sucked down chute 4427 | -5/Factory | Entered Waste 4428 | -5/Waste | Spotted C-40 Crusher 4432 | -5/Waste | Spotted C-40 Crusher 4434 | -5/Waste | Spotted C-40 Crusher 4437 | -5/Waste | Spotted C-40 Crusher 4441 | -5/Waste | Spotted C-40 Crusher 4441 | -5/Waste | Spotted C-40 Crusher 4441 | -5/Waste | Discovered new exit (range 20) 4442 | -5/Waste | EMP discharged 4445 | -5/Waste | Identified exit to Factory 4445 | -5/Waste | Entered Factory 4457 | -5/Factory | Discovered exit to Factory (range 11) 4547 | -5/Factory | Loaded intel: 8 recycling unit locations 4997 | -5/Factory | Spotted B-75 Beast 5034 | -5/Factory | Discovered exit to Factory (range 6) 5130 | -5/Factory | Repaired Mic. Fission Core+ 5198 | -5/Factory | Cargo convoy interrupted 5204 | -5/Factory | Discovered exit to Factory (range 11) 5254 | -5/Factory | Entered another Factory area 5254 | -4/Factory | Evolved 2 slots: Utility x2 5315 | -4/Factory | Loaded intel: 8 recycling unit locations 5416 | -4/Factory | Found Prototype Processor 5420 | -4/Factory | Discovered new exit (range 13) 5424 | -4/Factory | Identified exit to Research 5628 | -4/Factory | Discovered new exit (range 7) 5635 | -4/Factory | Identified Exp. Signal Interpreter 5906 | -4/Factory | Sucked down chute 5906 | -4/Factory | Entered Waste 5906 | -4/Waste | The area was eerily silent 5907 | -4/Waste | Found Prototype Device 5907 | -4/Waste | Identified Exp. Terrain Scanner 6026 | -4/Waste | Found Adv. Powered Armor 6084 | -4/Waste | Discovered new exit (range 12) 6200 | -4/Waste | Identified exit to Factory 6204 | -4/Waste | Entered Factory 6379 | -4/Factory | Loaded intel: 8 recycling unit locations 6402 | -4/Factory | Discovered exit to Research (range 16) 6418 | -4/Factory | Garrison activated, responded to threat 6496 | -4/Factory | Repaired Adv. Powered Armor? 6498 | -4/Factory | Build established: Hacker-Sprinter 6704 | -4/Factory | Search patrols dispatched 7129 | -4/Factory | Spotted B-86 Titan 7171 | -4/Factory | Entered Research 7171 | -3/Research | Evolved 2 slots: Utility x1, Weapon x1 7302 | -3/Research | Found Fusion Bomb Launcher 7327 | -3/Research | Found Prototype Processor 7327 | -3/Research | Identified Spectral Analyzer 7391 | -3/Research | Loaded intel: 5 recycling unit locations 7407 | -3/Research | Spotted B-86 Titan 7446 | -3/Research | Identified exit to Testing 7480 | -3/Research | Entered Testing 7486 | -3/Testing | Found Prototype Energy Cannon 7486 | -3/Testing | Identified Imp. Potential Cannon 7537 | -3/Testing | Found Prototype Hackware 7537 | -3/Testing | Identified System Mapper 7639 | -3/Testing | Found Prototype Ballistic Cannon 7639 | -3/Testing | Identified Omega Cannon 7683 | -3/Testing | Build established: Hacker-Scout 7696 | -3/Testing | Discovered new exit (range 14) 7701 | -3/Testing | Identified exit to Research 7702 | -3/Testing | Central database locked down 7730 | -3/Testing | Search patrols dispatched 7733 | -3/Testing | Found Prototype Energy Gun 7733 | -3/Testing | Identified Hyp. EM Gauss Rifle 7770 | -3/Testing | Entered Research 7770 | -2/Research | Evolved 2 slots: Utility x1, Weapon x1 7847 | -2/Research | Spotted B-90 Cyclops 8020 | -2/Research | Search patrols dispatched 8117 | -2/Research | Discovered new exit (range 9) 8118 | -2/Research | Identified exit to Quarantine 8119 | -2/Research | Entered Quarantine 8141 | -2/Quarantine | Garrison activated, responded to threat 8145 | -2/Quarantine | Found Alien Energy Cannon 8145 | -2/Quarantine | Identified Core Cannon 8165 | -2/Quarantine | Scanned by Researcher 8216 | -2/Quarantine | Discovered new exit (range 19) 8236 | -2/Quarantine | Found Exp. EM Shield 8252 | -2/Quarantine | Spotted Fortress 8276 | -2/Quarantine | Discovered new exit (range 6) 8276 | -2/Quarantine | Discovered new exit (range 7) 8277 | -2/Quarantine | Identified exit to Protoforge 8278 | -2/Quarantine | Identified exit to Section 7 8279 | -2/Quarantine | Entered Protoforge 8280 | -2/Protoforge | Superfortress began startup sequence 8292 | -2/Protoforge | Spotted Hotshot 8306 | -2/Protoforge | Spotted Hotshot 8306 | -2/Protoforge | Spotted Hotshot 8311 | -2/Protoforge | Lost 3 parts (2n1u) 8312 | -2/Protoforge | Spotted Hotshot 8312 | -2/Protoforge | Spotted Hotshot 8331 | -2/Protoforge | Spotted AP7-3 8331 | -2/Protoforge | Spotted AP7-3 8335 | -2/Protoforge | Spotted Overlord 8347 | -2/Protoforge | Core integrity fell below 50% 8355 | -2/Protoforge | Spotted Decapitator 8355 | -2/Protoforge | Spotted Decapitator 8376 | -2/Protoforge | UFD initiated attack on Protoforge (Readiness: Maximal) 8376 | -2/Protoforge | Loaded intel: 3 recycling unit locations 8377 | -2/Protoforge | Lost 8 parts (4n3u1w) 8402 | -2/Protoforge | Scrapoids reinforcements arrived? 8404 | -2/Protoforge | Scraphulk reinforcements arrived? 8406 | -2/Protoforge | Spotted EXE-6 8412 | -2/Protoforge | Optimus greeted in Protoforge 8422 | -2/Protoforge | Found Prototype Ballistic Gun 8422 | -2/Protoforge | Identified Cep. XC Strikerail 8424 | -2/Protoforge | Found Cep. XC Strikerail 8433 | -2/Protoforge | Found Prototype Device 8433 | -2/Protoforge | Identified Exp. Kinecellerator 8436 | -2/Protoforge | Found Prototype Processor 8436 | -2/Protoforge | Identified Exp. Armor Integrity Analyzer 8439 | -2/Protoforge | Found Prototype Processor 8439 | -2/Protoforge | Identified Exp. Core Analyzer 8442 | -2/Protoforge | Found Exp. Core Analyzer 8461 | -2/Protoforge | Lost 9 allies 8475 | -2/Protoforge | Spotted EXE-6 8476 | -2/Protoforge | Spotted EXE-6 8494 | -2/Protoforge | Found Cep. XC Strikerail 8508 | -2/Protoforge | Found Exp. Kinecellerator 8623 | -2/Protoforge | Spotted Executioner 8637 | -2/Protoforge | P-80 Master assimilated allied 20-UEV(E) 8640 | -2/Protoforge | Spotted Executioner 8640 | -2/Protoforge | P-80 Master assimilated allied 02F23-D 8665 | -2/Protoforge | Found Exp. Core Analyzer 8669 | -2/Protoforge | Spotted Striker 8671 | -2/Protoforge | Spotted Striker 8671 | -2/Protoforge | Found Exp. Core Analyzer 8679 | -2/Protoforge | Destroyed Striker 8681 | -2/Protoforge | Lost 4 allies 8686 | -2/Protoforge | Destroyed Striker 8736 | -2/Protoforge | Spotted Striker 8737 | -2/Protoforge | Destroyed 12 combat bots 8739 | -2/Protoforge | Spotted Striker 8744 | -2/Protoforge | Spotted Hotshot 8746 | -2/Protoforge | Destroyed Striker 8748 | -2/Protoforge | Spotted Hotshot 8752 | -2/Protoforge | Spotted Executioner 8753 | -2/Protoforge | Spotted B-90 Cyclops 8777 | -2/Protoforge | Spotted Executioner 8782 | -2/Protoforge | Allies destroyed Striker 8792 | -2/Protoforge | Build established: Scavenger-Gunner 8795 | -2/Protoforge | Spotted Executioner 8830 | -2/Protoforge | Destroyed Executioner 8836 | -2/Protoforge | Spotted Executioner 8839 | -2/Protoforge | Spotted Striker 8843 | -2/Protoforge | Destroyed Striker 8843 | -2/Protoforge | Destroyed B-90 Cyclops 8858 | -2/Protoforge | Lost 10 allies 8868 | -2/Protoforge | Spotted Executioner 8941 | -2/Protoforge | UFD reported confirmed Drillbomb installation 8944 | -2/Protoforge | Spotted Hotshot 8944 | -2/Protoforge | Spotted Hotshot 8944 | -2/Protoforge | Spotted Hotshot 8946 | -2/Protoforge | Spotted Hotshot 8958 | -2/Protoforge | Spotted Striker 8962 | -2/Protoforge | Spotted Striker 8963 | -2/Protoforge | Destroyed Striker 8976 | -2/Protoforge | Spotted Striker 8977 | -2/Protoforge | Spotted Striker 9040 | -2/Protoforge | Lost 3 allies 9110 | -2/Protoforge | Destroyed Hotshot 9129 | -2/Protoforge | System corruption reached 10% 9131 | -2/Protoforge | Found UFD Drillbomb 9148 | -2/Protoforge | UFD reported confirmed Drillbomb installation 9166 | -2/Protoforge | Installed UFD Drillbomb at designated target 9166 | -2/Protoforge | UFD reported confirmed Drillbomb installation 9177 | -2/Protoforge | Spotted Executioner 9185 | -2/Protoforge | P-80 Master assimilated allied 02F10-K 9185 | -2/Protoforge | Spotted 02F10-K 9194 | -2/Protoforge | UFD reported confirmed Drillbomb installation 9206 | -2/Protoforge | Spotted Striker 9208 | -2/Protoforge | Spotted Striker 9222 | -2/Protoforge | Destroyed Executioner 9261 | -2/Protoforge | UFD reported confirmed Drillbomb installation 9283 | -2/Protoforge | Lost 14 allies 9322 | -2/Protoforge | Spotted Executioner 9358 | -2/Protoforge | Spotted Striker 9359 | -2/Protoforge | Spotted Executioner 9360 | -2/Protoforge | Spotted Striker 9363 | -2/Protoforge | Destroyed Striker 9366 | -2/Protoforge | Lost 5 allies 9368 | -2/Protoforge | Spotted Executioner 9381 | -2/Protoforge | P-80 Master assimilated allied Lugger 823 9381 | -2/Protoforge | Destroyed Striker 9410 | -2/Protoforge | Lost 4 allies 9420 | -2/Protoforge | Destroyed Executioner 9557 | -2/Protoforge | Additional patrols dispatched to research labs 9558 | -2/Protoforge | Spotted Decapitator 9564 | -2/Protoforge | Spotted Striker 9565 | -2/Protoforge | Spotted Striker 9572 | -2/Protoforge | Destroyed Striker 9577 | -2/Protoforge | Spotted Decapitator 9579 | -2/Protoforge | Destroyed Striker 9638 | -2/Protoforge | Spotted Striker 9639 | -2/Protoforge | Spotted Striker 9644 | -2/Protoforge | Destroyed Striker 9652 | -2/Protoforge | Lost 10 parts (2p2n6u) 9656 | -2/Protoforge | Destroyed Striker 9677 | -2/Protoforge | Destroyed 15 combat bots 9733 | -2/Protoforge | Spotted Striker 9734 | -2/Protoforge | Spotted Executioner 9734 | -2/Protoforge | Spotted Executioner 9760 | -2/Protoforge | Spotted Hotshot 9760 | -2/Protoforge | Spotted Hotshot 9760 | -2/Protoforge | Spotted Hotshot 9767 | -2/Protoforge | Destroyed Striker 9772 | -2/Protoforge | Spotted Striker 9774 | -2/Protoforge | Destroyed Striker 9776 | -2/Protoforge | Spotted Executioner 9781 | -2/Protoforge | Destroyed Executioner 9784 | -2/Protoforge | Destroyed Executioner 9813 | -2/Protoforge | Lost 6 allies 9821 | -2/Protoforge | Destroyed 12 combat bots 9834 | -2/Protoforge | Discovered new exit (range 20) 9834 | -2/Protoforge | Spotted Executioner 9835 | -2/Protoforge | Spotted Executioner 9837 | -2/Protoforge | Spotted Executioner 9838 | -2/Protoforge | Spotted Striker 9855 | -2/Protoforge | Spotted Striker 9857 | -2/Protoforge | Spotted Striker 9867 | -2/Protoforge | Lost 6 allies 9867 | -2/Protoforge | Core integrity fell below 20% 9886 | -2/Protoforge | Destroyed Striker 9886 | -2/Protoforge | Destroyed Striker 9901 | -2/Protoforge | Destroyed Executioner 9929 | -2/Protoforge | Destroyed Executioner 9947 | -2/Protoforge | Lost 6 parts (1p1n3u1w) 9961 | -2/Protoforge | Spotted Striker 9962 | -2/Protoforge | Spotted Executioner 9963 | -2/Protoforge | Spotted Striker 9968 | -2/Protoforge | Spotted Striker 9980 | -2/Protoforge | Destroyed Striker 9993 | -2/Protoforge | Lost 12 allies 10042 | -2/Protoforge | Found UFD Drillbomb 10053 | -2/Protoforge | Lost 3 allies 10066 | -2/Protoforge | Spotted Striker 10067 | -2/Protoforge | Spotted Executioner 10068 | -2/Protoforge | Spotted Executioner 10069 | -2/Protoforge | Spotted Striker 10110 | -2/Protoforge | Found Exp. Core Analyzer 10113 | -2/Protoforge | Lost 8 allies 10140 | -2/Protoforge | Destroyed Striker 10147 | -2/Protoforge | Spotted Striker 10149 | -2/Protoforge | Spotted Striker 10153 | -2/Protoforge | Destroyed Striker 10160 | -2/Protoforge | Destroyed Striker 10162 | -2/Protoforge | P-80 Master assimilated allied 02FBV-D 10197 | -2/Protoforge | Lost 3 allies 10213 | -2/Protoforge | Found Prototype Device 10213 | -2/Protoforge | Identified Adv. Kinecellerator 10217 | -2/Protoforge | Found Exp. Core Analyzer 10237 | -2/Protoforge | Spotted Executioner 10240 | -2/Protoforge | Destroyed Executioner 10251 | -2/Protoforge | Spotted Executioner 10254 | -2/Protoforge | Destroyed Executioner 10272 | -2/Protoforge | Spotted Executioner 10277 | -2/Protoforge | Destroyed Executioner 10291 | -2/Protoforge | Spotted Executioner 10360 | -2/Protoforge | Spotted Striker 10531 | -2/Protoforge | Installed UFD Drillbomb at designated target 10531 | -2/Protoforge | UFD reported confirmed Drillbomb installation 10646 | -2/Protoforge | Spotted Executioner 10648 | -2/Protoforge | Spotted Striker 10686 | -2/Protoforge | Destroyed Striker 10690 | -2/Protoforge | Spotted Executioner 10730 | -2/Protoforge | Destroyed Executioner 10771 | -2/Protoforge | P-80 Master assimilated allied Q7-47V(E) 10780 | -2/Protoforge | Lost 5 allies 10845 | -2/Protoforge | Spotted Executioner 10847 | -2/Protoforge | Destroyed Executioner 10902 | -2/Protoforge | Lost 3 allies 10943 | -2/Protoforge | Spotted Executioner 10943 | -2/Protoforge | Spotted Striker 10946 | -2/Protoforge | Spotted Striker 10947 | -2/Protoforge | Destroyed Striker 10961 | -2/Protoforge | Destroyed Striker 10973 | -2/Protoforge | Destroyed Executioner 11072 | -2/Protoforge | Spotted Executioner 11073 | -2/Protoforge | Destroyed Executioner 11075 | -2/Protoforge | Spotted Executioner 11126 | -2/Protoforge | Spotted Executioner 11126 | -2/Protoforge | Spotted Executioner 11126 | -2/Protoforge | Spotted Executioner 11126 | -2/Protoforge | Spotted Executioner 11167 | -2/Protoforge | Spotted Striker 11170 | -2/Protoforge | Spotted Striker 11182 | -2/Protoforge | Lost 7 allies 11192 | -2/Protoforge | Destroyed Striker 11271 | -2/Protoforge | Lost 6 allies 11282 | -2/Protoforge | Spotted Executioner 11283 | -2/Protoforge | Spotted Striker 11335 | -2/Protoforge | Lost 7 allies 11430 | -2/Protoforge | Lost 5 allies 11558 | -2/Protoforge | Spotted Striker 11560 | -2/Protoforge | Spotted Striker 11564 | -2/Protoforge | Destroyed Striker 11600 | -2/Protoforge | Spotted 02F51-K 11691 | -2/Protoforge | Spotted Striker 11692 | -2/Protoforge | Spotted Striker 11763 | -2/Protoforge | Spotted Executioner 11769 | -2/Protoforge | Spotted Striker 11774 | -2/Protoforge | Spotted Executioner 11779 | -2/Protoforge | Destroyed 02F51-K 11789 | -2/Protoforge | Build established: Scavenger-Tank 11802 | -2/Protoforge | Spotted Striker 11802 | -2/Protoforge | Spotted Executioner 11851 | -2/Protoforge | Lost 16 allies 11872 | -2/Protoforge | Spotted Executioner 11872 | -2/Protoforge | Spotted Executioner 11874 | -2/Protoforge | Destroyed Executioner 11877 | -2/Protoforge | Destroyed Executioner 11880 | -2/Protoforge | Spotted Executioner 11881 | -2/Protoforge | Destroyed Executioner 11883 | -2/Protoforge | Spotted Executioner 11910 | -2/Protoforge | Destroyed Executioner 11928 | -2/Protoforge | Lost 5 allies 11931 | -2/Protoforge | Destroyed 7 combat bots 11973 | -2/Protoforge | Spotted Executioner 11986 | -2/Protoforge | Spotted Executioner 12007 | -2/Protoforge | Spotted Executioner 12046 | -2/Protoforge | Lost 7 allies 12087 | -2/Protoforge | Spotted Executioner 12094 | -2/Protoforge | Spotted Striker 12112 | -2/Protoforge | Spotted Executioner 12140 | -2/Protoforge | Destroyed by Executioner with Helical Railgun Last Messages --------------- Target Analyzer. 12131_ N-04 Retriever collects Ovr. Medium Treads. 12131_ Destroyed Flexi-carbon Leg. 12131_ L-61 Swordsman knocked back. 12132_ Acquired 20 matter. 12133_ N-04 Retriever collects Mak. Salvage Targeting Computer. 12133_ System corrupted: Omega Cannon jammed. 12134_ N-04 Retriever collects Lgt. Antimatter Reactor. 12134_ N-04 Retriever collects Imp. Antigrav System. 12134_ Penetrated by Slug. 12139_ System corrupted: Enh. Biometal Leg stumbles. 12139_ Slug penetrates Striker. 12139_ Striker suffers critical hit (Destroy). 12140_ Slug penetrates Striker. 12140_ Penetrated by Slug. Map ----- +----------------------------------------------------+ | ??????????????? % | | ==##### ???????????????? %####!!!!"####====## | | ""#####??""???????????????????#####""??????#""""?? | | ####?##???????????????????????##?####??????####??? | | ####?##???????????????????????##?#####???????????? | | ?????###########################?????????????????? | | ?????###########################?????????????????# | | ?????????????????????????????????????????????????# | | ????????????????????????????????????????????????# | | ??????????????????????????????????################ | | ??????????????????????????????????# | | ??????????????????????????????????# "" "" " | | ??????????????????????????????????# """" !%% | | ??????????????????????????????????# " " " [&* | | ?????? ????????????????###????????# " " "% | | ??????? ???##??######### ####?????# "=[ | | ###?# ## #?# #?# ;####;;#;###??##?# " " | | # ### ## ## ###; #### ### %%""" | | """##";;;;;##;;### " ;##;# ## % % | | # ; ; =" ! ; # " % % % % | | " " # ;;;#; % ; # %=%% | | ; "! *!=!; ; # " % | | ! "!![==!*=#=!%]! ;;;;[ # "" =! | | !*"!==!= [*!=!=!=!! ; !!! # """" %%[ | | = ==% ; %!!%%=![=[=[|! % ; ; #=! % % | | %[ % ; %[!%%**%&% % @ % %%&;#% % %% " | | %& %%%%%%%%%%%%%%%% %%n %%%%s n% n% %m% %%m"""% | | %%%%%%%%%%%%%%%%%%%%%%%%ss%%%%%n;%&% " %% %%%" % | | % %%&%%ss%%%%s%A%%%%%%%%%n%% %s%%%%%%% ""% % % | | "%%;%%%%%;%%%%&&%%%%%%% % %%;%%;#% %% %%%*% | | & %&&*[=%=%!%%%!&!!!!*%% = ! %; #%% %% ! =% | | ! %[[*=!!==%!%!=%![==%% [! % ==# ="" | | "%! !=&===%=[%=!=%%%% % * % =!# %% % % | | " % !*!!!=%!*==!!%[!% ; = #= % % !%" "" | | "* ; [ ;! [K*;%% %;;;;;;#;##%! %%"% %=! %" | | " ;% ;% [ ; %%; ##[=!" %%% ! " | | ####""#;;% ;;;*;;;%%%%%= ##=![ %" % = %"" | | ### # # ;%!!= [%%%%;!% ## ![= %%%% %" | | #### ###; ; *% *%;%%%;=!! ## ! % %% " | | ##?#### ;;;;;; [[%%% %%; =! ## /!* %%%% % | | ##???# ; = ;%%%; ! ;# %=! %%%% % % | | ##???# # # ;%l%% ! ## != %%%% % | | ##???### # ## % !%%%;[ ## *!! %% % % | | ???????# ## ## " %% ;== ## ""!%=* %% | | ????#### # ### " ;%%%;==;;;;#;## " ""[!["" "" " | | ?#######"##### ""% %%%;%[ ### # "" %%" | | ## ?## ##%% "" % ;; ;;;##?## =% % | | ### ""#" " %% "#??# ! | | # ## """"% "% % """" ###?# """"""" !" | | "#"""" % %""""""" %% [ " " #?# """ " " | +----------------------------------------------------+ Best States ------------- Heat Dissipation 75 Energy Generation 53 Energy Capacity 1300 Matter Stores 300 Matter Capacity 300 Sight Range 23 Robot Scan Range 16 Terrain Scan Density 10 Cloak Strength 3 Armor Coverage 1050 Resistance: KI 25 Resistance: EM 20 Core Shielding 10 Propulsion Shielding 90 Weapon Shielding 90 Evasion (%) 77 Core Analysis 12 Armor Integrity Analysis 50 Kinecelleration 66 Salvage Targeting 5 Offensive Hacking 34 Defensive Hacking 28 Item Schematics ----------------- Exp. Transmission Jammer | -2/Quarantine | Archive Exp. System Shield | -2/Quarantine | Archive Robot Schematics ------------------ K-01 Serf | -2/Quarantine | Archive T-07 Excavator | -2/Quarantine | Archive Fabricated ------------ Cloaking Device | x2 | -7/Factory | Preloaded Repaired ---------- Greatsword | 38% | -7/Factory Mic. Fission Core | 41% | -5/Factory Adv. Powered Armor | 12% | -4/Factory Studied --------- VTOL Module | -8/Materials | Hacked Cesium-ion Thruster | -8/Materials | Hacked Gravmag System | -7/Factory | Hacked Missile Launcher | -7/Factory | Hacked Field Propulsion Drive | -5/Factory | Hacked Mic. Fission Core | -5/Factory | Hacked Xenon Bombardment Thruster | -5/Factory | Hacked Lance | -5/Factory | Hacked Imp. Surge Thruster | -5/Factory | Hacked Nuclear Pulse Thruster | -5/Factory | Hacked Micro-nuke Launcher | -4/Factory | Hacked Q-thruster | -3/Testing | Hacked Fusion Bomb Launcher | -2/Research | Hacked Alien Tech Used ----------------- Core Cannon Achievements -------------- Anti-science Crusade Civilization 2243 Ew, Corruption Fine I'll Do It Myself Ghost 'Em Hulk Smash Link The Feds Sprinter Super-what Now? UFD MVP We Are One You May Approach The Wall Challenges ------------ None Game ------ Seed FrostBladeNanoactuators Manual? 0 Play Time 04:40:00 Cumulative 387.5 hours Start 2025.10.29 @ 00:04:18 End 2025.11.11 @ 22:59:30 Sessions 2 Manual Loads 0 Difficulty Rogue Special Mode None Game No. 183 Rogue 183 Adventurer 0 Explorer 0 Win Type - Total 12 Types 9/0/2/0/0/0/0/0/0/1 Lore% 83 Gallery% 81 Achievement% 51 Wizard Run 0 Options --------- Layout 1 ASCII 0 Keyboard 0 Movement Mouse Keybinds 0 Fullscreen 1 Font 24/Smallcaps Map View 50x35 Zoom Use 0% Tactical HUD 1 Map Filters NONE Filters NONE Steam 1 RUN: 011063c2-5b73-4d7c-baac-7fb4b87e3247